bitfinex-derivatives/quotes_SOLF0:USTF0_20250903
["timestamp","ask_amount","ask_price","bid_price","bid_amount"]
[1756921929907,0.03447518,211.43,211.39,3.07610945]
[1756921930799,0.03447518,211.43,211.4,3.57]
[1756921931406,0.03447518,211.43,211.42,3.07610945]
[1756921931607,0.03447518,211.43,211.42,6.64610945]
[1756921932703,0.03447518,211.43,211.42,3.57]
[1756921933709,0.03447518,211.43,211.36,3.59]
[1756921934007,7.27447518,211.43,211.36,3.59]
[1756921934509,7.27447518,211.43,211.36,6.66610945]
[1756921935210,7.27447518,211.43,211.36,3.59]
[1756921935614,7.27447518,211.43,211.35,3.07610945]
[1756921935904,7.27447518,211.43,211.32,6.66610945]
[1756921936410,10.35058463,211.43,211.32,3.59]
[1756921938510,7.27447518,211.43,211.32,6.66610945]
[1756921938911,7.27447518,211.43,211.35,3.07610945]
[1756921939110,7.27447518,211.43,211.36,3.59]
[1756921939305,7.24,211.43,211.36,3.59]
[1756921939510,0.03362781,211.42,211.36,3.59]
[1756921944115,7.24,211.41,211.32,3.59]
[1756921944316,7.24,211.41,211.29,3.07610945]
[1756921944517,7.24,211.41,211.28,3.59]
[1756921945014,0.03132405,211.37,211.28,3.59]
[1756921945415,0.03132405,211.37,211.3,3.59]
[1756921946617,0.03132405,211.37,211.32,3.07610945]
[1756921947016,0.03132405,211.37,211.33,3.59]
[1756921947318,0.03132405,211.37,211.36,3.59]
[1756921949013,0.03132405,211.37,211.35,3.07610945]
[1756921949213,7.27132405,211.37,211.3,3.59]
[1756921950114,7.27132405,211.37,211.3,6.66610945]
[1756921951119,7.27132405,211.37,211.3,3.59]
[1756921951323,7.27132405,211.37,211.27,6.66610945]
[1756921952014,7.27132405,211.37,211.27,3.59]
[1756921952713,10.3474335,211.37,211.22,3.59]
[1756921953118,43.54,211.36,211.25,3.59]
[1756921953316,0.03525334,211.32,211.25,3.59]
[1756921955720,7.27525334,211.32,211.25,3.59]
[1756921957119,0.03525334,211.32,211.25,3.07610945]
[1756921957323,0.03525334,211.32,211.26,3.59]
[1756921965633,0.03525334,211.32,211.22,3.58]
[1756921965634,7.36,211.31,211.22,3.58]
[1756921966125,0.03043793,211.29,211.22,3.58]
[1756921966526,7.39043793,211.29,211.22,3.58]
[1756921967226,0.03043793,211.29,211.22,3.58]
[1756921969326,7.39043793,211.29,211.22,3.58]
[1756921971628,7.39043793,211.29,211.18,3.58]
[1756921972830,0.03043793,211.29,211.18,3.58]
[1756921973535,0.03043793,211.29,211.2,3.58]
[1756921973932,7.36,211.31,211.2,3.58]
[1756921974135,0.03444674,211.27,211.2,3.58]
[1756921975631,7.36,211.26,211.16,3.58]
[1756921981439,7.36,211.26,211.16,6.66143708]
[1756921984039,7.36,211.26,211.16,3.58]
[1756921984232,7.36,211.26,211.13,3.58]
[1756921984932,0.03281545,211.22,211.13,3.58]
[1756921985444,0.03281545,211.22,211.15,3.08143708]
[1756921985643,0.03281545,211.22,211.16,3.58]
[1756921986637,0.03281545,211.22,211.18,3.08143708]
[1756921986836,0.03281545,211.22,211.19,3.58]
[1756921987040,7.36,211.27,211.19,3.58]
[1756921987242,0.03356433,211.23,211.19,3.58]
[1756921987440,0.03356433,211.23,211.18,3.08143708]
[1756921988942,0.03356433,211.23,211.19,3.58]
[1756921989138,0.03356433,211.23,211.18,3.08143708]
[1756921989345,0.03356433,211.23,211.12,66.297]
[1756921989545,0.03356433,211.23,211.22,5.55131139]
[1756921991343,0.03356433,211.23,211.2,1.97131139]
[1756921991344,7.39356433,211.23,211.2,1.97131139]
[1756921991747,7.2,211.25,211.18,1.97131139]
[1756921991944,7.2,211.23,211.16,1.97131139]
[1756921992340,7.2,211.23,211.18,1.97131139]
[1756921992645,5.3181231,211.32,211.2,5.55131139]
[1756921992646,0.03319082,211.22,211.2,5.55131139]
[1756921993042,7.2,211.27,211.21,3.58]
[1756921993239,0.03496154,211.23,211.1,3.59]
[1756921993442,7.2,211.22,211.19,1.97131139]
[1756921993642,1.97131139,211.26,211.19,1.97131139]
[1756921993946,1.97131139,211.26,211.14,15.08]
[1756921993947,0.03053743,211.23,211.21,1.97131139]
[1756921994141,0.03053743,211.23,211.21,5.56131139]
[1756921994941,0.03053743,211.23,211.21,1.97131139]
[1756921995141,0.03053743,211.23,211.22,3.59]
[1756921997142,7.2,211.33,211.22,4.07]
[1756921997347,7.2,211.33,211.29,1.97131139]
[1756921997949,7.2,211.39,211.29,5.56131139]
[1756921998243,0.03332485,211.36,211.31,1.97131139]
[1756921998648,7.23332485,211.36,211.3,1.97131139]
[1756921999648,7.23332485,211.36,211.29,3.59]
[1756922006050,7.23332485,211.36,211.25,8.37831555]
[1756922006350,7.23332485,211.36,211.25,4.78831555]
[1756922006547,7.23332485,211.36,211.26,3.59]
[1756922008444,7.23332485,211.36,211.22,3.59]
[1756922008746,7.2,211.36,211.22,3.59]
[1756922009153,7.2,211.3,211.22,3.59]
[1756922009550,7.2,211.3,211.18,3.59]
[1756922010150,0.03161288,211.26,211.18,3.59]
[1756922015657,7.2,211.25,211.18,3.59]
[1756922016357,7.2,211.25,211.15,3.59]
[1756922016951,0.03101911,211.22,211.15,3.59]
[1756922017754,0.03101911,211.22,211.19,3.59]
[1756922017950,7.2,211.32,211.22,4.2596]
[1756922018155,7.2,211.32,211.24,3.59]
[1756922019060,7.2,211.32,211.26,0.03530663]
[1756922021661,7.2,211.34,211.28,1.97052528]
[1756922022257,1.97052528,211.35,211.29,0.03072997]
[1756922022463,7.91,211.34,211.29,0.03072997]
[1756922022658,1.97052528,211.35,211.29,0.03072997]
[1756922023059,7.91,211.34,211.29,0.03072997]
[1756922023260,1.97052528,211.35,211.29,0.03072997]
[1756922024261,9.88052528,211.35,211.29,0.03072997]
[1756922026868,59.32,211.38,211.29,0.03072997]
[1756922026869,1.97052528,211.33,211.29,0.03072997]
[1756922027171,7.91,211.3,211.29,0.03072997]
[1756922027869,8.39,211.3,211.2,3.58]
[1756922028066,1.97052528,211.23,211.16,5.58052528]
[1756922029674,1.97052528,211.21,211.13,1.97052528]
[1756922031165,9.88052528,211.19,211.12,3.61]
[1756922031370,14.22,211.29,211.09,1.97052528]
[1756922031371,7.91,211.16,211.09,1.97052528]
[1756922033277,1.97052528,211.19,211.11,1.97052528]
[1756922033471,7.91,211.21,211.13,5.58052528]
[1756922033672,7.91,211.21,211.13,3.61]
[1756922033873,7.91,211.21,211.13,5.58052528]
[1756922035179,1.97052528,211.2,211.13,5.58052528]
[1756922036681,1.97052528,211.2,211.11,1.97052528]
[1756922036682,7.91,211.19,211.11,1.97052528]
[1756922037181,9.88052528,211.19,211.11,1.97052528]
[1756922037977,9.88052528,211.19,211.1,1.97052528]
[1756922040780,7.91,211.16,211.1,1.97052528]
[1756922041378,7.91,211.16,211.12,1.97052528]
[1756922041577,332.38,211.3,211.14,1.97052528]
[1756922041578,7.91,211.21,211.14,1.97052528]
[1756922044389,7.91,211.21,211.16,1.97052528]
[1756922044572,7.91,211.21,211.17,3.61]
[1756922044978,7.91,211.25,211.18,1.97052528]
[1756922045484,9.88052528,211.25,211.18,1.97052528]
[1756922048986,7.91,211.25,211.17,1.97052528]
[1756922049183,9.88052528,211.25,211.17,1.97052528]
[1756922049584,7.91,211.25,211.16,3.61]
[1756922052382,7.3,211.29,211.19,3.63]
[1756922052585,7.3,211.29,211.22,3.63]
[1756922053384,7.3,211.29,211.21,3.08190638]
[1756922053584,7.3,211.29,211.2,3.08190638]
[1756922057289,7.3,211.29,211.18,6.69190638]
[1756922058491,10.42,211.35,211.15,3.08190638]
[1756922058492,7.3,211.27,211.15,3.08190638]
[1756922058993,7.3,211.27,211.16,3.61]
[1756922059790,7.3,211.27,211.13,3.08190638]
[1756922060394,3.08190638,211.25,211.13,3.08190638]
[1756922060692,7.3,211.24,211.13,3.08190638]
[1756922063195,7.3,211.24,211.14,3.61]
[1756922072502,7.3,211.24,211.15,3.08190638]
[1756922073701,7.3,211.24,211.16,3.61]
[1756922079007,7.3,211.24,211.16,6.69190638]
[1756922080304,7.3,211.24,211.13,3.08190638]
[1756922081507,7.3,211.24,211.14,3.61]
[1756922087914,7.3,211.24,211.17,3.62]
[1756922089810,7.3,211.24,211.13,3.08190638]
[1756922090015,7.3,211.24,211.13,6.70190638]
[1756922091615,7.3,211.24,211.13,3.62]
[1756922099317,12.6181231,211.24,211.13,3.62]
[1756922100323,7.32,211.22,211.1,7.55357857]
[1756922100621,7.32,211.22,211.1,3.62]
[1756922101425,7.32,211.22,211.09,7.01548495]
[1756922101426,7.32,211.22,211.12,3.08190638]
[1756922102517,7.32,211.22,211.11,6.70190638]
[1756922104622,7.32,211.22,211.12,3.62]
[1756922105020,7.32,211.22,211.12,7.55357857]
[1756922105214,7.32,211.22,211.12,3.62]
[1756922105418,7.32,211.22,211.15,3.62]
[1756922105824,0.03160977,211.21,211.15,3.62]
[1756922107926,7.32,211.2,211.15,3.62]
[1756922108321,7.35160977,211.21,211.15,3.62]
[1756922108828,7.35160977,211.21,211.11,7.55357857]
[1756922109026,7.32,211.19,211.08,3.93357857]
[1756922109226,7.32,211.19,211.07,7.55357857]
[1756922109523,1.97414071,211.16,211.08,1.97414071]
[1756922109728,7.32,211.15,211.08,1.97414071]
[1756922110631,1.97414071,211.14,211.07,3.62]
[1756922110931,7.32,211.13,211.07,5.59414071]
[1756922111430,7.32,211.13,211.07,3.62]
[1756922112931,7.32,211.13,211.05,1.97414071]
[1756922113629,7.26,211.11,211.05,1.97414071]
[1756922113826,1.97414071,211.08,210.99,3.93357857]
[1756922114027,7.26,211.07,210.99,1.97414071]
[1756922114226,7.26,211.07,211.01,1.97414071]
[1756922116833,7.26,211.05,210.99,5.59414071]
[1756922117026,7.26,211.05,210.97,1.97414071]
[1756922117632,1.97414071,211.04,210.97,1.97414071]
[1756922119033,1.97414071,211.04,210.96,3.62]
[1756922119034,7.26,211.03,210.96,3.62]
[1756922119532,2.00817587,211.02,210.96,3.62]
[1756922120627,2.00817587,211.02,210.97,0.03341996]
[1756922120821,7.26,211.01,210.97,0.03341996]
[1756922121328,0.03403516,211.02,211.0,3.62]
[1756922121527,7.29403516,211.02,210.99,1.97414071]
[1756922121728,7.26,211.01,210.97,5.62756067]
[1756922121931,7.26,211.01,210.98,3.62]
[1756922122226,0.03403516,211.02,210.98,3.62]
[1756922122421,0.03403516,211.02,210.99,1.97414071]
[1756922122622,0.03403516,211.02,211.0,3.62]
[1756922126626,0.03403516,211.02,210.99,1.97414071]
[1756922126825,7.29403516,211.02,210.98,5.59414071]
[1756922127529,7.29403516,211.02,210.99,3.62]
[1756922127729,0.03403516,211.02,210.99,3.62]
[1756922128126,0.03403516,211.02,210.98,1.97414071]
[1756922128327,0.03403516,211.02,210.99,3.62]
[1756922128529,0.03403516,211.02,210.98,1.97414071]
[1756922128729,0.03403516,211.02,211.01,3.62]
[1756922131734,0.03403516,211.02,210.97,0.03341996]
[1756922131926,1.97414071,211.01,210.97,0.03341996]
[1756922132131,7.26,211.0,210.97,0.03341996]
[1756922132334,1.97414071,211.01,210.97,0.03341996]
[1756922132637,7.26,211.0,210.97,0.03341996]
[1756922133133,7.26,211.01,210.97,0.03341996]
[1756922133339,7.26,211.0,210.97,0.03341996]
[1756922133728,7.26,210.98,210.97,0.03341996]
[1756922139641,7.26,211.01,210.97,3.65341996]
[1756922140946,0.03403516,211.02,210.98,3.62]
[1756922141139,7.29403516,211.02,210.98,3.62]
[1756922141739,0.03403516,211.02,210.98,3.64]
[1756922141940,0.03403516,211.02,211.0,3.64]
[1756922143540,0.03403516,211.02,211.01,5.61414071]
[1756922143742,0.03403516,211.02,210.97,0.03341996]
[1756922143944,7.52403516,211.02,210.98,3.64]
[1756922144444,0.03403516,211.02,210.98,3.64]
[1756922144846,7.52403516,211.02,210.98,3.64]
[1756922145243,0.03403516,211.02,210.98,3.64]
[1756922145644,0.03403516,211.02,210.97,2.00756067]
[1756922146549,0.03403516,211.02,210.98,3.64]
[1756922146748,7.52403516,211.02,210.98,3.64]
[1756922146949,0.03403516,211.02,210.99,1.97414071]
[1756922147149,0.03403516,211.02,210.99,5.61414071]
[1756922147840,0.03403516,211.02,210.99,1.97414071]
[1756922148046,0.03403516,211.02,211.01,5.61414071]
[1756922150851,0.03403516,211.02,211.0,5.61414071]
[1756922151048,0.03403516,211.02,210.98,5.61414071]
[1756922151252,0.03403516,211.02,210.98,1.97414071]
[1756922151454,0.03403516,211.02,211.0,1.97414071]
[1756922151754,0.03403516,211.02,211.01,3.64]
[1756922155557,7.49,211.12,211.01,4.12]
[1756922155856,7.49,211.12,211.05,5.57414071]
[1756922156550,9.46414071,211.12,210.97,3.6]
[1756922156756,1.97414071,211.08,211.0,1.97414071]
[1756922156956,7.49,211.07,211.06,0.03169845]
[1756922158256,7.49,211.07,211.0,1.97414071]
[1756922158257,7.49,211.07,210.97,3.6]
[1756922158458,7.49,211.04,210.97,5.57414071]
[1756922159659,0.03150995,211.03,210.97,5.57414071]
[1756922159958,0.03150995,211.03,211.0,3.63]
[1756922160358,0.03150995,211.03,211.01,1.97414071]
[1756922161154,0.03150995,211.03,210.99,1.97414071]
[1756922161155,7.52150995,211.03,210.99,1.97414071]
[1756922161651,7.52150995,211.03,210.99,5.60414071]
[1756922162358,7.52150995,211.03,210.98,5.60414071]
[1756922163658,0.03150995,211.03,211.0,5.60414071]
[1756922163863,0.03150995,211.03,211.01,3.63]
[1756922164263,0.03150995,211.03,211.0,1.97414071]
[1756922164458,0.03150995,211.03,210.92,123.27357857]
[1756922164459,7.52150995,211.03,210.98,5.60414071]
[1756922164960,0.03150995,211.03,210.98,5.60414071]
[1756922165262,7.49,211.02,210.98,5.60414071]
[1756922165661,0.03150995,211.03,210.99,3.63]
[1756922165858,7.52150995,211.03,210.99,3.63]
[1756922166060,7.52150995,211.03,210.95,1.97414071]
[1756922166255,7.49,211.01,210.92,3.63]
[1756922166455,7.49,211.01,210.93,1.97414071]
[1756922166655,7.49,210.97,210.9,1.97414071]
[1756922166860,9.46414071,210.97,210.9,1.97414071]
[1756922167368,9.46414071,210.97,210.84,57.26]
[1756922167369,7.49,210.97,210.92,1.97414071]
[1756922167666,7.49,210.98,210.92,1.97414071]
[1756922168056,7.52141409,210.97,210.92,5.60414071]
[1756922168266,7.52141409,210.97,210.91,1.97414071]
[1756922168663,7.52141409,210.97,210.9,1.97414071]
[1756922168863,7.52141409,210.97,210.88,3.63]
[1756922169062,9.4955548,210.97,210.9,1.97414071]
[1756922169265,9.46414071,210.93,210.85,1.97414071]
[1756922169460,7.49,210.93,210.84,119.6]
[1756922169964,0.03084005,210.91,210.84,119.6]
[1756922170963,7.49,210.9,210.84,119.6]
[1756922171462,7.49,210.9,210.83,3.63]
[1756922171972,7.49,210.9,210.81,3.0910523]
[1756922172173,7.49,210.9,210.84,0.03226739]
[1756922172870,7.93,210.88,210.84,0.03226739]
[1756922173059,0.03400423,210.89,210.84,0.03226739]
[1756922173562,7.93,210.88,210.84,0.03226739]
[1756922173768,0.03400423,210.89,210.84,0.03226739]
[1756922173968,7.93,210.88,210.84,0.03226739]
[1756922174168,0.03400423,210.89,210.84,0.03226739]
[1756922174858,7.93,210.88,210.84,0.03226739]
[1756922175064,0.03400423,210.89,210.84,0.03226739]
[1756922176068,7.93,210.88,210.84,0.03226739]
[1756922178766,0.03400423,210.89,210.84,0.03226739]
[1756922178966,7.93,210.88,210.84,0.03226739]
[1756922179367,0.03400423,210.89,210.84,0.03226739]
[1756922180071,7.93,210.88,210.84,0.03226739]
[1756922180367,0.03400423,210.89,210.84,0.03226739]
[1756922180570,7.93,210.88,210.84,0.03226739]
[1756922180765,0.03400423,210.89,210.84,0.03226739]
[1756922180969,7.93,210.88,210.84,0.03226739]
[1756922181565,0.03400423,210.89,210.84,0.03226739]
[1756922182371,7.93,210.88,210.84,0.03226739]
[1756922183273,0.03400423,210.89,210.84,0.03226739]
[1756922183471,7.93,210.88,210.84,0.03226739]
[1756922183673,0.03400423,210.89,210.84,0.03226739]
[1756922183873,7.93,210.88,210.84,0.03226739]
[1756922184268,0.03400423,210.89,210.84,0.03226739]
[1756922184670,7.93,210.88,210.84,0.03226739]
[1756922184969,0.03400423,210.89,210.84,0.03226739]
[1756922185268,7.93,210.88,210.84,0.03226739]
[1756922185472,0.03400423,210.89,210.84,0.03226739]
[1756922185668,7.93,210.88,210.84,0.03226739]
[1756922185973,7.93,210.86,210.84,0.03226739]
[1756922186667,0.48,210.86,210.75,162.99332817]
[1756922186866,7.93,210.82,210.75,162.99332817]
[1756922187067,7.93,210.82,210.71,3.66]
[1756922187874,7.96537139,210.79,210.71,3.66]
[1756922190087,0.03537139,210.79,210.71,3.66]
[1756922191284,0.03537139,210.79,210.74,3.66]
[1756922191483,0.03537139,210.79,210.76,3.0910523]
[1756922191685,0.03537139,210.79,210.77,3.66]
[1756922192982,0.03537139,210.79,210.76,3.0910523]
[1756922193685,0.03537139,210.79,210.77,3.66]
[1756922194081,0.03537139,210.79,210.76,3.5710523]
[1756922194479,0.03537139,210.79,210.77,3.66]
[1756922194781,0.03537139,210.79,210.76,3.5710523]
[1756922195087,0.03537139,210.79,210.77,3.66]
[1756922195785,0.03537139,210.79,210.76,3.0910523]
[1756922196688,0.03537139,210.79,210.77,3.66]
[1756922196890,0.03537139,210.79,210.76,3.0910523]
[1756922198283,0.03537139,210.79,210.77,3.66]
[1756922198489,0.03537139,210.79,210.76,3.0910523]
[1756922199081,0.03537139,210.79,210.77,3.66]
[1756922199492,0.03537139,210.79,210.73,3.0910523]
[1756922199691,0.03537139,210.79,210.74,3.66]
[1756922199993,0.03537139,210.79,210.73,3.0910523]
[1756922200292,0.03537139,210.79,210.74,3.66]
[1756922201589,0.03537139,210.79,210.73,3.0910523]
[1756922201887,0.03537139,210.79,210.74,3.67]
[1756922202087,0.03537139,210.79,210.73,3.0910523]
[1756922202293,0.03537139,210.79,210.72,3.67]
[1756922202587,7.33537139,210.79,210.72,3.67]
[1756922205090,0.03537139,210.79,210.72,3.67]
[1756922208799,7.3,210.78,210.68,3.67]
[1756922209896,7.3,210.78,210.7,3.0910523]
[1756922210095,7.3,210.78,210.71,3.67]
[1756922210995,0.03537139,210.79,210.71,3.67]
[1756922212898,0.03537139,210.79,210.71,6.7610523]
[1756922214202,0.03537139,210.79,210.72,3.67]
[1756922221303,0.03537139,210.79,210.73,3.0910523]
[1756922221698,0.03537139,210.79,210.74,3.67]
[1756922222302,0.03537139,210.79,210.73,3.0910523]
[1756922222606,0.03537139,210.79,210.74,3.67]
[1756922222798,0.03537139,210.79,210.73,3.0910523]
[1756922223004,0.03537139,210.79,210.74,3.67]
[1756922223807,0.03537139,210.79,210.73,3.0910523]
[1756922224109,0.03537139,210.79,210.74,3.67]
[1756922224607,0.03537139,210.79,210.73,3.0910523]
[1756922224998,0.03537139,210.79,210.74,3.67]
[1756922225201,0.03537139,210.79,210.73,3.0910523]
[1756922225602,0.03537139,210.79,210.74,3.67]
[1756922226011,0.03537139,210.79,210.73,3.67]
[1756922226503,7.3,210.78,210.7,3.93378156]
[1756922226701,7.3,210.78,210.7,3.67]
[1756922227404,0.03537139,210.79,210.73,3.67]
[1756922227708,7.3,210.82,210.73,3.67]
[1756922228109,0.03100967,210.78,210.73,3.67]
[1756922228406,0.03100967,210.78,210.76,3.67]
[1756922228610,0.03100967,210.78,210.75,3.0910523]
[1756922228810,0.03100967,210.78,210.76,3.67]
[1756922229408,0.03100967,210.78,210.75,3.0910523]
[1756922229606,0.03100967,210.78,210.76,3.67]
[1756922230210,0.03100967,210.78,210.75,3.0910523]
[1756922231111,0.03100967,210.78,210.76,3.67]
[1756922231311,0.03100967,210.78,210.76,3.66]
[1756922231611,0.03100967,210.78,210.77,3.66]
[1756922232311,0.03100967,210.78,210.72,7.59378156]
[1756922232512,7.95100967,210.78,210.71,3.93378156]
[1756922232806,7.95100967,210.78,210.71,1.9799787]
[1756922233407,7.95100967,210.78,210.74,3.66]
[1756922233608,7.95100967,210.78,210.73,1.9799787]
[1756922234011,7.95100967,210.78,210.74,3.66]
[1756922235611,7.92,210.77,210.71,3.66]
[1756922235819,0.03100967,210.78,210.72,1.9799787]
[1756922239616,0.03100967,210.78,210.75,3.66]
[1756922240019,0.03100967,210.78,210.74,1.9799787]
[1756922240316,2.26668403,210.77,210.75,2.47382481]
[1756922240522,2.26668403,210.76,210.75,0.69456203]
[1756922241421,0.03100967,210.78,210.75,3.9858371]
[1756922241720,0.03100967,210.78,210.77,1.9799787]
[1756922242414,0.03100967,210.78,210.77,2.6699787]
[1756922250929,7.92,210.89,210.83,1.9799787]
[1756922251325,7.92,210.87,210.81,1.9799787]
[1756922251525,7.92,210.85,210.77,2.6699787]
[1756922251726,7.92,210.85,210.74,3.98402515]
[1756922251923,7.92,210.82,210.76,1.9799787]
[1756922253535,7.92,210.8,210.74,2.6699787]
[1756922254230,7.92,210.8,210.71,4.67402515]
[1756922254424,7.92,210.78,210.71,0.69]
[1756922254632,7.92,210.78,210.72,1.9799787]
[1756922255529,9.8999787,210.78,210.7,1.9799787]
[1756922256929,9.8999787,210.78,210.68,3.98402515]
[1756922257131,9.8999787,210.78,210.7,1.9799787]
[1756922257332,9.8999787,210.78,210.72,1.9799787]
[1756922257531,7.92,210.78,210.74,2.6699787]
[1756922257733,7.92,210.78,210.76,1.9799787]
[1756922259336,7.92,210.81,210.76,1.9799787]
[1756922259738,7.92,210.81,210.74,1.9799787]
[1756922260839,7.92,210.79,210.72,1.9799787]
[1756922262637,7.92,210.79,210.74,1.9799787]
[1756922262937,1.9799787,210.85,210.78,1.9799787]
[1756922263241,7.47,210.84,210.78,1.9799787]
[1756922264437,7.47,210.84,210.8,1.9799787]
[1756922264744,7.47,210.85,210.8,1.9799787]
[1756922264944,7.47,210.85,210.78,1.9799787]
[1756922267851,7.47,210.85,210.76,0.68]
[1756922268052,7.47,210.83,210.77,1.9799787]
[1756922269050,7.47,210.83,210.75,1.9799787]
[1756922270147,7.47,210.83,210.77,1.9799787]
[1756922271851,7.47,210.83,210.75,0.68]
[1756922272053,7.47,210.85,210.78,1.9799787]
[1756922272449,7.47,210.83,210.76,1.9799787]
[1756922272752,1.9799787,210.84,210.76,1.9799787]
[1756922272753,1.9799787,210.82,210.76,1.9799787]
[1756922272954,7.47,210.81,210.75,1.9799787]
[1756922273147,5.3181231,210.84,210.71,0.68]
[1756922273148,7.47,210.79,210.72,1.9799787]
[1756922273353,7.47,210.77,210.7,1.9799787]
[1756922275148,1.9799787,210.76,210.7,1.9799787]
[1756922276152,7.47,210.75,210.7,1.9799787]
[1756922276653,1.9799787,210.76,210.7,1.9799787]
[1756922277052,9.4499787,210.76,210.7,1.9799787]
[1756922277853,9.4499787,210.76,210.69,1.9799787]
[1756922280760,7.47,210.76,210.69,1.9799787]
[1756922283162,9.4499787,210.76,210.69,1.9799787]
[1756922283957,1.9799787,210.74,210.64,0.82600491]
[1756922284156,7.47,210.73,210.66,1.9799787]
[1756922285160,7.47,210.73,210.66,2.6599787]
[1756922285559,7.47,210.73,210.69,0.68]
[1756922286056,7.47,210.75,210.69,0.68]
[1756922287866,7.47,210.75,210.68,1.9799787]
[1756922288262,11.56,210.8,210.62,0.68]
[1756922288263,7.47,210.73,210.62,0.68]
[1756922288561,7.47,210.71,210.66,1.9799787]
[1756922288765,7.47,210.71,210.65,1.9799787]
[1756922289066,7.47,210.71,210.62,0.68]
[1756922289363,7.47,210.71,210.65,1.9799787]
[1756922290766,7.47,210.71,210.68,0.68]
[1756922291067,9.4499787,210.74,210.68,0.68]
[1756922291866,7.47,210.74,210.68,0.68]
[1756922292166,7.28,210.75,210.69,1.9799787]
[1756922293668,7.28,210.75,210.68,0.68]
[1756922304277,7.28,210.75,210.68,3.77625897]
[1756922309382,7.28,210.75,210.69,0.69]
[1756922309876,7.28,210.75,210.71,3.09625897]
[1756922310076,7.28,210.75,210.72,0.69]
[1756922310283,7.28,210.8,210.72,0.69]
[1756922311293,7.28,210.8,210.74,3.09625897]
[1756922312378,7.28,210.8,210.74,3.78625897]
[1756922312580,5.3181231,210.85,210.77,3.09625897]
[1756922312780,7.28,210.88,210.8,3.09625897]
[1756922313784,7.28,210.9,210.78,3.09625897]
[1756922314189,7.28,210.9,210.79,0.69]
[1756922318790,7.28,210.9,210.74,0.69]
[1756922318995,10.37625897,210.9,210.78,3.09625897]
[1756922321491,10.37625897,210.9,210.73,20.6896]
[1756922321492,7.28,210.9,210.81,3.09625897]
[1756922324600,7.28,210.9,210.81,3.76625897]
[1756922326702,7.28,210.9,210.81,0.67]
[1756922326901,7.28,210.9,210.81,3.76625897]
[1756922330098,7.28,210.9,210.81,0.67]
[1756922330306,7.24,210.9,210.8,3.09625897]
[1756922331505,7.24,210.9,210.79,0.67]
[1756922331704,7.24,210.9,210.81,3.09625897]
[1756922340409,7.24,210.9,210.82,0.67]
[1756922341305,7.24,210.9,210.84,3.09625897]
[1756922349418,7.24,210.9,210.85,0.67]
[1756922349609,0.03161913,210.89,210.84,3.09625897]
[1756922349818,0.03161913,210.89,210.85,0.67]
[1756922350213,0.03161913,210.89,210.84,3.09625897]
[1756922351316,0.03161913,210.89,210.87,0.67]
[1756922353018,0.03161913,210.89,210.87,0.69]
[1756922353324,0.03161913,210.89,210.86,3.09625897]
[1756922353514,0.03161913,210.89,210.88,2.6673628]
[1756922355223,7.97494624,211.02,210.88,2.6673628]
[1756922355224,7.55,210.96,210.89,0.69]
[1756922355419,9.5273628,211.0,210.94,1.9773628]
[1756922356121,9.5273628,211.0,210.93,1.9773628]
[1756922356322,9.5273628,211.0,210.95,0.03006263]
[1756922356516,7.55,211.0,210.95,0.03006263]
[1756922356926,7.55,211.0,210.95,2.00742543]
[1756922357115,7.2954859,211.01,210.95,2.00742543]
[1756922357318,7.55,211.0,210.95,2.00742543]
[1756922357619,5.3181231,211.01,210.95,2.00742543]
[1756922357924,7.55,211.01,210.95,2.00742543]
[1756922360729,9.5273628,211.01,210.95,2.00742543]
[1756922361727,7.55,210.98,210.95,0.03006263]
[1756922363526,7.55,210.96,210.95,0.03006263]
[1756922367233,7.55,210.97,210.81,0.69]
[1756922367429,7.55,210.91,210.85,1.9773628]
[1756922370336,7.55,210.91,210.84,0.69]